[Event "ESTCC-50 2025"]
[Site "Swidnica"]
[Date "2025.04.07"]
[Round "3.14"]
[White "Emms, John M"]
[Black "Szmyd, Marek"]
[Result "1-0"]
[Annotator "RC"]
[ECO "B30"]
[WhiteElo "2411"]
[BlackElo "1900"]
[PlyCount "81"]
[EventDate "2025.04.05"]
[EventType "team-tourn"]
[EventCountry "POL"]
[SourceTitle "playchess.com"]
[Source "ChessBase"]
[SourceQuality "1"]
[WhiteTeam "England"]
[BlackTeam "Poland"]
[WhiteTeamCountry "ENG"]
[BlackTeamCountry "POL"]
[TimeControl "40/5400+30:1800+30"]

1. e4 {[%emt 0:00:16]} c5 {[%emt 0:00:22]} 2. Nf3 {[%emt 0:00:09]} Nc6 {[%emt 0:00:55]} 3. Bb5 {[%emt 0:00:19]} d6 {[%emt 0:02:45]} 4. O-O {[%emt 0:02:13]} e5 {[%emt 0:01:49]} 5. c3 {[%emt 0:11:38]} a6 {[%emt 0:15:02]} 6. Bxc6+ {[%emt 0:04:18]} bxc6 {[%emt 0:00:06]} 7. d4 {[%emt 0:00:13]} cxd4 {[%emt 0:01:00]} 8. cxd4 {[%emt 0:00:05]} Qc7 {[%emt 0:04:48]} 9. dxe5 {[%emt 0:12:27]} dxe5 {[%emt 0:00:07]} 10. Qc2 {[%emt 0:00:23]} Nf6 {[%emt 0:10:14]} 11. Nxe5 {[%emt 0:16:48]} Bb7 {[%emt 0:07:23]} 12. Nc4 {[%emt 0:15:33]} Be7 {[%emt 0:04:55]} 13. Nc3 {[%emt 0:05:40]} O-O {[%emt 0:01:39]} 14. h3 {[%emt 0:06:34]} Rfe8 {[%emt 0:02:39]} 15. Be3 {[%emt 0:05:02]} c5 {[%emt 0:06:08]} 16. Rad1 {[%emt 0:02:08]} Rad8 {[%emt 0:03:46]} 17. Rfe1 {[%emt 0:01:50]} Rxd1 {[%emt 0:04:15]} 18. Rxd1 {[%emt 0:00:06]} Bf8 {[%emt 0:05:44]} 19. f3 {[%emt 0:01:16]} Bc6 {[%emt 0:08:48]} 20. Qd2 {[%emt 0:02:14]} Bb5 {[%emt 0:03:14]} 21. Bf4 {[%emt 0:01:54]} Qa7 {[%emt 0:02:32]} 22. Nd6 {[%emt 0:01:26]} Bxd6 {[%emt 0:00:29]} 23. Qxd6 {[%emt 0:00:21]} c4+ {[%emt 0:02:06]} 24. Qd4 {[%emt 0:00:51]} Qxd4+ {[%emt 0:00:48]} 25. Rxd4 {[%emt 0:00:02]} Rc8 {[%emt 0:00:37]} 26. Kf2 {[%emt 0:02:35]} h6 {[%emt 0:00:34]} 27. Ke3 {[%emt 0:00:36]} g5 {[%emt 0:00:39]} 28. Bd6 {[%emt 0:00:26]} Be8 {[%emt 0:00:57]} 29. Ba3 {[%emt 0:01:18]} Kg7 {[%emt 0:01:59]} 30. Rd6 {[%emt 0:01:02]} a5 {[%emt 0:01:31]} 31. Ra6 {[%emt 0:01:27]} Nh5 {[%emt 0:01:23]} 32. Bd6 {[%emt 0:00:48]} Nf4 {[%emt 0:02:07]} 33. Be5+ {[%emt 0:00:53]} Kh7 {[%emt 0:00:29]} 34. Bxf4 {[%emt 0:00:13]} gxf4+ {[%emt 0:00:05]} 35. Kxf4 {[%emt 0:00:06]} Rb8 {[%emt 0:00:36]} 36. Nd5 {[%emt 0:00:55]} Rxb2 {[%emt 0:01:08]} 37. Nf6+ {[%emt 0:01:14]} Kh8 {[%emt 0:00:04]} 38. Nxe8 {[%emt 0:01:59]} Rxa2 {[%emt 0:01:16]} 39. Nf6 {[%emt 0:00:40]} Kg7 {[%emt 0:02:00]} 40. e5 {[%emt 0:00:00]} h5 {[%emt 0:00:00]} 41. Ke4 1-0

[Event "ESTCC-50 2025"]
[Site "Swidnica"]
[Date "2025.04.07"]
[Round "3.15"]
[White "Zaremba, Artur"]
[Black "Davies, Nigel R"]
[Result "1/2-1/2"]
[Annotator "RC"]
[ECO "B42"]
[WhiteElo "2133"]
[BlackElo "2309"]
[PlyCount "93"]
[EventDate "2025.04.05"]
[EventType "team-tourn"]
[EventCountry "POL"]
[SourceTitle "playchess.com"]
[Source "ChessBase"]
[SourceQuality "1"]
[WhiteTeam "Poland"]
[BlackTeam "England"]
[WhiteTeamCountry "POL"]
[BlackTeamCountry "ENG"]
[TimeControl "40/5400+30:1800+30"]

1. e4 {[%emt 0:00:14]} c5 {[%emt 0:00:16]} 2. Nf3 {[%emt 0:00:15]} e6 {[%emt 0:00:10]} 3. d4 {[%emt 0:00:25]} cxd4 {[%emt 0:00:07]} 4. Nxd4 {[%emt 0:00:08]} a6 {[%emt 0:00:50]} 5. Bd3 {[%emt 0:01:56]} Bc5 {[%emt 0:00:21]} 6. Nb3 {[%emt 0:01:53]} Ba7 {[%emt 0:00:23]} 7. Qe2 {[%emt 0:01:03]} Nc6 {[%emt 0:00:13]} 8. c3 {[%emt 0:02:07]} d6 {[%emt 0:00:39]} 9. Be3 {[%emt 0:00:14]} Nf6 {[%emt 0:00:53]} 10. N1d2 {[%emt 0:00:56]} O-O {[%emt 0:01:28]} 11. O-O {[%emt 0:02:50]} Bxe3 {[%emt 0:02:03]} 12. Qxe3 {[%emt 0:00:03]} e5 {[%emt 0:00:17]} 13. Rad1 {[%emt 0:00:51]} Qc7 {[%emt 0:03:59]} 14. h3 {[%emt 0:01:48]} Be6 {[%emt 0:03:32]} 15. Bc4 {[%emt 0:01:49]} Nd8 {[%emt 0:11:40]} 16. Bxe6 {[%emt 0:02:33]} Nxe6 {[%emt 0:00:19]} 17. Rfe1 {[%emt 0:00:20]} b5 {[%emt 0:01:29]} 18. Nf3 {[%emt 0:00:32]} Rfd8 {[%emt 0:01:36]} 19. g3 {[%emt 0:00:12]} a5 {[%emt 0:01:12]} 20. a3 {[%emt 0:03:25]} Qb7 {[%emt 0:03:00]} 21. Nh4 {[%emt 0:00:53]} g6 {[%emt 0:00:49]} 22. Ng2 {[%emt 0:04:23]} Kg7 {[%emt 0:04:06]} 23. f3 {[%emt 0:04:10]} Rd7 {[%emt 0:03:40]} 24. Rd2 {[%emt 0:00:27]} Qc7 {[%emt 0:01:34]} 25. Red1 {[%emt 0:00:23]} Rad8 {[%emt 0:01:03]} 26. Qf2 {[%emt 0:03:59]} a4 {[%emt 0:14:00]} 27. Nc1 {[%emt 0:01:26]} d5 {[%emt 0:01:02]} 28. exd5 {[%emt 0:01:19]} Nxd5 {[%emt 0:02:17]} 29. Ne3 {[%emt 0:03:55]} Nxe3 {[%emt 0:01:26]} 30. Qxe3 {[%emt 0:00:28]} Rxd2 {[%emt 0:03:13]} 31. Rxd2 {[%emt 0:00:09]} Rxd2 {[%emt 0:01:12]} 32. Qxd2 {[%emt 0:00:07]} e4 {[%emt 0:04:17]} 33. f4 {[%emt 0:02:06]} Qc5+ {[%emt 0:00:35]} 34. Qf2 {[%emt 0:03:27]} e3 {[%emt 0:07:25]} 35. Qe2 {[%emt 0:00:08]} Nd4 {[%emt 0:00:43]} 36. cxd4 {[%emt 0:05:14]} Qxc1+ {[%emt 0:00:10]} 37. Kg2 {[%emt 0:00:08]} Qc6+ {[%emt 0:00:09]} 38. Kg1 {[%emt 0:03:27]} Qe4 {[%emt 0:00:09]} 39. d5 {[%emt 0:00:17]} Kf6 {[%emt 0:02:10]} 40. d6 {[%emt 0:00:00]} Qd4 {[%emt 0:00:00]} 41. Kg2 {[%emt 0:01:30]} Qd5+ {[%emt 0:04:39]} 42. Kg1 {[%emt 0:00:12]} Qc5 {[%emt 0:10:54]} 43. Kg2 {[%emt 0:00:52]} Qc6+ {[%emt 0:00:48]} 44. Kg1 {[%emt 0:00:11]} Qc1+ {[%emt 0:00:21]} 45. Kg2 {[%emt 0:00:07]} Ke6 {[%emt 0:02:51]} 46. Kf3 {[%emt 0:11:25]} Qc6+ {[%emt 0:05:20]} 47. Kxe3 {[%emt 0:00:25]} 1/2-1/2

[Event "ESTCC-50 2025"]
[Site "Swidnica"]
[Date "2025.04.07"]
[Round "3.16"]
[White "Dishman, Stephen"]
[Black "Kilanski, Janusz"]
[Result "1-0"]
[Annotator "RC"]
[ECO "A39"]
[WhiteElo "2279"]
[BlackElo "1670"]
[PlyCount "76"]
[EventDate "2025.04.05"]
[EventType "team-tourn"]
[EventCountry "POL"]
[SourceTitle "playchess.com"]
[Source "ChessBase"]
[SourceQuality "1"]
[WhiteTeam "England"]
[BlackTeam "Poland"]
[WhiteTeamCountry "ENG"]
[BlackTeamCountry "POL"]
[TimeControl "40/5400+30:1800+30"]

1. Nf3 {[%emt 0:00:03]} Nf6 {[%emt 0:00:30]} 2. c4 {[%emt 0:00:07]} c5 {[%emt 0:00:26]} 3. g3 {[%emt 0:00:27]} Nc6 {[%emt 0:00:31]} 4. Bg2 {[%emt 0:00:20]} g6 {[%emt 0:00:45]} 5. O-O {[%emt 0:00:25]} Bg7 {[%emt 0:00:54]} 6. Nc3 {[%emt 0:00:12]} O-O {[%emt 0:00:56]} 7. d4 {[%emt 0:00:07]} cxd4 {[%emt 0:00:15]} 8. Nxd4 {[%emt 0:00:05]} a6 {[%emt 0:00:40]} 9. Nc2 {[%emt 0:10:02]} d6 {[%emt 0:08:22]} 10. b3 {[%emt 0:04:36]} Qc7 {[%emt 0:04:42]} 11. Bb2 {[%emt 0:01:10]} Rb8 {[%emt 0:04:26]} 12. a4 {[%emt 0:11:43]} Be6 {[%emt 0:05:08]} 13. Rb1 {[%emt 0:01:55]} Nd7 {[%emt 0:08:34]} 14. e4 {[%emt 0:06:58]} Rfe8 {[%emt 0:08:44]} 15. Nd5 {[%emt 0:07:15]} Qc8 {[%emt 0:02:00]} 16. Bxg7 {[%emt 0:01:49]} Kxg7 {[%emt 0:00:24]} 17. Nce3 {[%emt 0:14:07]} Nf8 {[%emt 0:09:19]} 18. b4 {[%emt 0:02:23]} Bh3 {[%emt 0:08:17]} 19. a5 {[%emt 0:02:07]} Bxg2 {[%emt 0:00:58]} 20. Kxg2 {[%emt 0:00:50]} Ne6 {[%emt 0:07:13]} 21. Nb6 {[%emt 0:01:17]} Qd8 {[%emt 0:00:29]} 22. f4 {[%emt 0:00:53]} Nc7 {[%emt 0:02:57]} 23. f5 {[%emt 0:02:58]} Ne5 {[%emt 0:04:55]} 24. Ng4 {[%emt 0:02:59]} f6 {[%emt 0:08:15]} 25. Qe2 {[%emt 0:06:02]} Rf8 {[%emt 0:02:19]} 26. Nxe5 {[%emt 0:03:11]} fxe5 {[%emt 0:00:54]} 27. Qg4 {[%emt 0:01:46]} Rf6 {[%emt 0:01:49]} 28. Rf3 {[%emt 0:01:52]} e6 {[%emt 0:01:57]} 29. Rbf1 {[%emt 0:00:41]} exf5 {[%emt 0:01:38]} 30. Rxf5 {[%emt 0:02:42]} Rxf5 {[%emt 0:00:25]} 31. exf5 {[%emt 0:00:28]} Qe8 {[%emt 0:01:53]} 32. fxg6 {[%emt 0:07:49]} hxg6 {[%emt 0:00:18]} 33. Nd7 {[%emt 0:01:06]} Rd8 {[%emt 0:00:39]} 34. Nf6 {[%emt 0:00:39]} Qe6 {[%emt 0:00:52]} 35. Qg5 {[%emt 0:02:48]} Rh8 {[%emt 0:01:08]} 36. h4 {[%emt 0:00:41]} Qxc4 {[%emt 0:02:35]} 37. Nh5+ {[%emt 0:01:33]} Rxh5 {[%emt 0:00:41]} 38. Qe7+ {[%emt 0:00:04]} Kh6 1-0